Cogmind - Beta 13 @@@ ROGUE MODE // 2024.06.02 @ 11:29:09 Player: TheRealTurtle Result: Destroyed by S-27 Virus with Autogun Performance ------------- Evolutions (3) 1500 Regions Visited (7) 1400 Robots Destroyed (62) 310 Value Destroyed (2118) 2118 Prototype IDs (2) 40 Alien Tech Used (0) 0 Bonus (7) 7 TOTAL SCORE: 5375 Bonus ------- Follower Combat Kills 7 Cogmind --------- Core Integrity 0/700 Matter 194/300 Energy 100/100 System Corruption 4% Temperature Cool (2) Movement Flying (40) Location -7/Factory Parts ------- > --- POWER (1) -------- (None) > --- PROPULSION (5) --- Xenon Bombardment Thruster > --- UTILITY (5) ------ Visual Processing Unit Visual Processing Unit Visual Processing Unit Improved Sensor Array > --- WEAPON (2) ------- (None) > --- INVENTORY (5) ---- Light Nuclear Core Medium Storage Unit Seismic Detector Gauss Rifle Mini Assault Cannon Peak State ------------ > --- POWER ------------ Nuclear Core > --- PROPULSION ------- Light Treads Aluminum Leg Aluminum Leg Aluminum Leg Aluminum Leg > --- UTILITY ---------- Heat Sink Small Storage Unit Core Analyzer Improved Light Armor Plating Improved Medium Armor Plating > --- WEAPON ----------- Heavy Assault Rifle Flak Gun > --- INVENTORY -------- Light Nuclear Core Light Nuclear Core Light Nuclear Core High-capacity Matter Pod ECM Suite Particle Cannon Autogun Autogun [Rating: 28] Favorites ----------- Power Improved Ion Engine Engine Improved Ion Engine Power Core Nuclear Core Propulsion Aluminum Leg Treads Light Treads Leg Aluminum Leg Wheel Compact Wheel Flight Unit Xenon Bombardment Thruster Utility Small Storage Unit Device ECM Suite Storage Small Storage Unit Processor Targeting Computer Hackware Hacking Suite Protection Core Shielding Weapon Heavy Assault Rifle Energy Gun Medium Laser Energy Cannon Particle Cannon Ballistic Gun Heavy Assault Rifle Ballistic Cannon Mini Assault Cannon Special Melee Weapon Datajack Build | -11 -10 -9 -9 -8 -7 -7 -7 ------- Run | Yrd Mat Mat Min Mat Fac Was Fac Slots Evolved 6 | . . 2 . 2 2 . . Power . | . . . . . . . . Propulsion 3 | . . 1 . 1 1 . . Utility 3 | . . 1 . 1 1 . . Weapon . | . . . . . . . . Parts Attached 96 | 6 1 15 3 22 39 . 10 Power 14 | 1 . 2 . 2 9 . . Engine 6 | 1 . 2 . . 3 . . Core 8 | . . . . 2 6 . . Reactor . | . . . . . . . . Propulsion 30 | 2 . 5 . 10 12 . 1 Treads 4 | . . . . 2 2 . . Leg 21 | 2 . 5 . 8 6 . . Wheel 4 | . . . . . 4 . . Hover . | . . . . . . . . Flight 1 | . . . . . . . 1 Utility 26 | 1 1 2 3 5 9 . 5 Device 8 | . . . 2 2 2 . 2 Storage 5 | 1 . . . . 4 . . Processor 5 | . . 1 . . 1 . 3 Hackware 1 | . . . . . 1 . . Protection 7 | . 1 1 1 3 1 . . Artifact . | . . . . . . . . Weapon 26 | 2 . 6 . 5 9 . 4 Energy Gun 5 | 2 . 2 . . 1 . . Energy Cannon 6 | . . 2 . 2 2 . . Ballistic Gun 13 | . . 1 . 3 6 . 3 Ballistic Cannon 1 | . . . . . . . 1 Launcher . | . . . . . . . . Special Weapon . | . . . . . . . . Impact Weapon . | . . . . . . . . Slashing Weapon . | . . . . . . . . Piercing Weapon . | . . . . . . . . Special Melee Weapon 1 | . . 1 . . . . . Unidentified Prototypes 2 | . . . . . 1 . 1 Parts Lost 38 | . . 6 . 9 17 5 1 Power 2 | . . . . 1 1 . . Propulsion 19 | . . 3 . 5 8 3 . Utility 8 | . . 1 . 2 4 1 . Weapon 9 | . . 2 . 1 4 1 1 Highest Loss Streak 11 | . . 4 . 3 11 4 1 To Critical Strikes 1 | . . . . . . 1 . Average Slot Usage (%) 82 | . 100 96 88 89 81 63 38 Engine 5 | . 14 11 11 5 . 5 . Core 2 | . . . . 3 6 . . Treads 2 | . . . . 7 4 5 . Leg 20 | . 28 30 22 21 23 . . Wheel 1 | . . . . . 1 16 . Device 6 | . . . 9 10 7 5 4 Storage 8 | . 14 11 11 9 8 14 . Processor 7 | . . 8 11 4 4 5 19 Protection 6 | . 14 13 1 8 7 . . Energy Gun 3 | . 28 10 . . 1 . . Energy Cannon 5 | . . 9 11 9 1 . . Ballistic Gun 7 | . . 1 11 8 10 8 6 Naked Turns 24 | . . . . . . 14 10 Heaviest Build 33 | 14 17 21 21 29 33 33 5 Greatest Support 55 | 20 20 30 20 45 55 42 6 Greatest Overweight (x) 3 | . . 1 1 1 3 1 . Average Overweight (x) . | . . . . . . . . Largest Inventory Capacity 8 | 8 8 8 8 8 8 8 5 Average Capacity 7 | 7 8 8 8 8 8 7 5 Most Carried 8 | 6 8 8 8 8 8 5 5 Average Carried 6 | 2 7 7 8 6 6 5 4 Final Capacity 8 | 8 8 8 8 8 8 5 5 Final Carried 8 | 6 8 8 8 7 5 5 5 Class Distribution -------------------- 63% | Mutant 36% | Scavenger-Mutant Dominant Class ---------------- Mutant | -10/Materials Mutant | -9/Materials Mutant | -9/Mines Scavenger-Mutant | -8/Materials Scavenger-Mutant | -7/Factory Scavenger-Mutant | -7/Waste Mutant | -7/Factory Resources | -11 -10 -9 -9 -8 -7 -7 -7 ----------- Run | Yrd Mat Mat Min Mat Fac Was Fac Matter Collected 1598 | 232 38 172 23 454 624 . 55 Remotely . | . . . . . . . . Salvage Created 2340 | . 91 619 . 662 826 . 142 Parts 124 | . 8 30 . 42 41 . 3 Haulers Intercepted . | . . . . . . . . Recyclers Shooed . | . . . . . . . . Parts Field Recycled . | . . . . . . . . Retrieved Matter . | . . . . . . . . Parts Self-Destructed . | . . . . . . . . Prevented . | . . . . . . . . Kills | -11 -10 -9 -9 -8 -7 -7 -7 ------- Run | Yrd Mat Mat Min Mat Fac Was Fac Combat Hostiles Destroyed 56 | . 6 15 . 15 19 . 1 Guns 37 | . 6 11 . 7 12 . 1 Cannons 16 | . . 2 . 8 6 . . Classes Destroyed 9 | . 1 3 . 2 3 . . Worker 3 | . . 1 . 1 1 . . Recycler 2 | . . . . . 1 . 1 Operator 1 | . . . . 1 . . . Swarmer 17 | . 6 4 . 3 4 . . Grunt 25 | . . 6 . 10 9 . . Duelist 1 | . . . . . 1 . . Sentry 7 | . . 5 . 1 1 . . Hunter 3 | . . . . 1 1 . 1 Programmer 3 | . . . . . 3 . . Best Kill Streak 6 | . 3 5 . 6 6 . 1 Combat Bots Only 6 | . 3 5 . 5 6 . 1 Max Kills in Single Turn 2 | . 1 1 . 1 2 . 1 Gunslinging . | . . . . . . . . Exploded . | . . . . . . . . Melee . | . . . . . . . . Uniques/NPCs Destroyed . | . . . . . . . . Combat | -11 -10 -9 -9 -8 -7 -7 -7 -------- Run | Yrd Mat Mat Min Mat Fac Was Fac Hostile Shots Fired 451 | . 15 95 1 106 176 4 54 Missed 120 | . 3 20 1 28 40 . 28 Damage Taken 5158 | . 101 919 43 1222 2354 181 338 Core 998 | . 17 120 6 143 463 128 121 Absorbed by Shields . | . . . . . . . . Redirected to Shielding 49 | . . 25 1 23 . . . Core Remaining (%) 83 | 100 93 . 68 74 . . . Volleys Fired 172 | . 8 46 1 43 61 . 13 Largest 2 | . 2 2 2 2 2 . 1 Hottest 136 | . 100 136 91 128 91 . 28 Shots Fired 315 | . 16 88 2 79 116 . 14 Gun 230 | . 16 73 1 24 102 . 14 Cannon 85 | . . 15 1 55 14 . . Launcher . | . . . . . . . . Special . | . . . . . . . . Kinetic 144 | . . 9 1 24 96 . 14 Thermal 164 | . 16 72 1 55 20 . . Explosive . | . . . . . . . . Electromagnetic 7 | . . 7 . . . . . Robot Hit Streak 26 | . 6 26 1 8 7 . 9 Robot Miss Streak 9 | . 2 3 1 3 9 . 1 Penetration Max 1 | . . . . . . . 1 Secondary Targets 2 | . . 1 . . 1 . . Max Gunslinging Chain 1 | . . 1 . . 1 . . Shots Hit Robots 231 | . 10 74 1 55 80 . 11 Core Hits 132 | . 6 25 . 29 69 . 3 Critical Kills 3 | . . 1 . . 1 . 1 Critical Parts Destroyed . | . . . . . . . . Critical Strikes 5 | . . 3 . . 1 . 1 Burn 2 | . . 2 . . . . . Meltdown 2 | . . 1 . . 1 . . Destroy 1 | . . . . . . . 1 Melee Attacks 2 | . . 2 . . . . . Impact . | . . . . . . . . Slashing . | . . . . . . . . Piercing . | . . . . . . . . Sneak Attacks . | . . . . . . . . Combat Hostiles . | . . . . . . . . Follow-up Attacks . | . . . . . . . . Damage Inflicted 3872 | . 124 1025 15 1109 1426 . 173 Guns 2655 | . 124 819 15 305 1219 . 173 Cannons 1217 | . . 206 . 804 207 . . Explosions . | . . . . . . . . Melee . | . . . . . . . . Ramming . | . . . . . . . . Kinetic 1721 | . . 87 15 305 1141 . 173 Thermal 2073 | . 124 860 . 804 285 . . Explosive . | . . . . . . . . Electromagnetic 78 | . . 78 . . . . . Impact . | . . . . . . . . Slashing . | . . . . . . . . Piercing . | . . . . . . . . Highest Corruption 4 | . . . . . 4 4 4 Average Corruption 3 | . . . . . 3 4 4 Corruption Purged . | . . . . . . . . Corruption Blocked . | . . . . . . . . Effects 27 | . . . . . 15 3 9 Message Errors 5 | . . . . . 2 . 3 Matter Fused 7 | . . . . . 3 2 2 Heat Flow Errors 4 | . . . . . 3 . 1 Energy Discharges 2 | . . . . . 1 . 1 Parts Rejected 1 | . . . . . 1 . . Data Loss (minor) 5 | . . . . . 3 1 1 Data Loss (major) 1 | . . . . . 1 . . Misfires 2 | . . . . . 1 . 1 Overload Shots . | . . . . . . . . Overflow Damage 10 | . . 1 . . 9 . . Projectiles 10 | . . 1 . . 9 . . Explosions . | . . . . . . . . Melee . | . . . . . . . . Knockbacks . | . . . . . . . . Impact . | . . . . . . . . Kinetic . | . . . . . . . . Secondary . | . . . . . . . . Self-Inflicted Damage . | . . . . . . . . Shots . | . . . . . . . . Rammed . | . . . . . . . . Targets Rammed . | . . . . . . . . Kicked . | . . . . . . . . Crushed . | . . . . . . . . Highest Temperature 481 | . 192 448 24 481 434 . 263 Average Temperature 143 | . 91 158 13 154 114 . 144 Received Heat Transfer 1599 | . 6 339 . 594 636 . 24 Effects 12 | . . 5 . 7 . . . Shutdowns 4 | . . 3 . 1 . . . Energy Bleed 1 | . . 1 . . . . . Interference 4 | . . . . 4 . . . Short Circuit 1 | . . . . 1 . . . Damage (minor) 1 | . . 1 . . . . . Damage (major) 1 | . . . . 1 . . . Siege Activations . | . . . . . . . . Robots Corrupted . | . . . . . . . . Combat Hostiles . | . . . . . . . . Parts Fried . | . . . . . . . . Impact Corruptions . | . . . . . . . . Robots Melted 3 | . . 2 . . 1 . . Combat Hostiles 3 | . . 2 . . 1 . . Parts Melted 15 | . 2 10 . 2 1 . . Heat Transferred 4736 | . 370 2442 . 1406 518 . . Parts Sabotaged . | . . . . . . . . Parts Stolen . | . . . . . . . . Parts Stripped . | . . . . . . . . Power Chain Reactions . | . . . . . . . . Alert | -11 -10 -9 -9 -8 -7 -7 -7 ------- Run | Yrd Mat Mat Min Mat Fac Was Fac Peak Influence 311 | . 170 311 103 176 200 65 158 Initial 103 | . . 71 103 . 62 45 17 Average 92 | . 27 210 83 56 96 46 71 Maximum Alert Level 1 | . . 1 . . 1 . . Low Security (%) 90 | 100 100 39 100 100 98 100 100 Level 1 9 | . . 60 . . 1 . . Level 2 . | . . . . . . . . Level 3 . | . . . . . . . . Level 4 . | . . . . . . . . Level 5 . | . . . . . . . . High Security . | . . . . . . . . Max Security . | . . . . . . . . Squads Dispatched 15 | . . 1 . 3 8 . 3 Investigation 4 | . . 1 . 2 . . 1 Extermination 4 | . . . . . 3 . 1 Reinforcement 4 | . . . . 1 2 . 1 Assault . | . . . . . . . . Garrison 3 | . . . . . 3 . . Intercept . | . . . . . . . . Searches Triggered . | . . . . . . . . Construction Impeded . | . . . . . . . . Haulers Reinforced 1 | . . . . . 1 . . Active Scanning Responses . | . . . . . . . . Cargo Convoy Interrupts . | . . . . . . . . Stealth | -11 -10 -9 -9 -8 -7 -7 -7 --------- Run | Yrd Mat Mat Min Mat Fac Was Fac Distress Signals 4 | . . 2 . . . . 2 Communications Jammed . | . . . . . . . . Distress Signals . | . . . . . . . . Times Spotted 115 | . 10 21 2 23 32 6 21 Peak Tracking Total 15 | . 6 7 1 6 6 6 15 Tactical Retreats 7 | . 1 . . 3 2 . 1 Traps | -11 -10 -9 -9 -8 -7 -7 -7 ------- Run | Yrd Mat Mat Min Mat Fac Was Fac Traps Triggered 9 | . . 1 1 2 3 . 2 Indirectly . | . . . . . . . . Trap Hack Attempts . | . . . . . . . . Triggered . | . . . . . . . . Disarmed . | . . . . . . . . Reprogrammed . | . . . . . . . . Reused . | . . . . . . . . Traps Extracted . | . . . . . . . . Installed . | . . . . . . . . Triggered . | . . . . . . . . Machines | -11 -10 -9 -9 -8 -7 -7 -7 ---------- Run | Yrd Mat Mat Min Mat Fac Was Fac Machines Disabled 2 | . . 1 . 1 . . . Max in Single Turn 1 | . . 1 . 1 . . . Machines Repaired . | . . . . . . . . Machines Dismantled . | . . . . . . . . Machines Sabotaged . | . . . . . . . . Overloaded Fab Kills . | . . . . . . . . Hacking | -11 -10 -9 -9 -8 -7 -7 -7 --------- Run | Yrd Mat Mat Min Mat Fac Was Fac Machines Accessed 5 | . . 2 1 1 . . 1 Terminals 4 | . . 2 . 1 . . 1 Fabricators . | . . . . . . . . Repair Stations . | . . . . . . . . Recycling Units . | . . . . . . . . Scanalyzers . | . . . . . . . . Garrison Access . | . . . . . . . . Total Hacks 13 | . . 8 1 2 . . 2 Successful 7 | . . 5 1 1 . . . Failed 6 | . . 3 . 1 . . 2 Catastrophic . | . . . . . . . . Database Lockouts . | . . . . . . . . Manual . | . . . . . . . . Terminals 12 | . . 8 . 2 . . 2 Fabricators . | . . . . . . . . Repair Stations . | . . . . . . . . Recycling Units . | . . . . . . . . Scanalyzers . | . . . . . . . . Garrison Access . | . . . . . . . . Terminal Hacks 7 | . . 5 1 1 . . . Record 4 | . . 3 . 1 . . . Open Door 1 | . . . 1 . . . . Zone Layout 2 | . . 2 . . . . . Fabricator Hacks . | . . . . . . . . Repair Station Hacks . | . . . . . . . . Recycling Unit Hacks . | . . . . . . . . Scanalyzer . | . . . . . . . . Garrison Access Hacks . | . . . . . . . . Unauthorized Hacks . | . . . . . . . . Terminals . | . . . . . . . . Fabricators . | . . . . . . . . Repair Stations . | . . . . . . . . Recycling Units . | . . . . . . . . Scanalyzers . | . . . . . . . . Garrison Access . | . . . . . . . . Data Cores Recovered 1 | . . . . 1 . . . Used . | . . . . . . . . Hacking Detections 3 | . . 1 . 1 . . 1 Full Trace Events . | . . . . . . . . Feedback Events . | . . . . . . . . Feedback Blocked . | . . . . . . . . Robot Schematics Acquired . | . . . . . . . . Robots Built . | . . . . . . . . Authchips . | . . . . . . . . Time . | . . . . . . . . Total Robot Build Rating . | . . . . . . . . Part Schematics Acquired . | . . . . . . . . Parts Built . | . . . . . . . . Authchips . | . . . . . . . . Time . | . . . . . . . . Total Part Build Rating . | . . . . . . . . Parts Repaired . | . . . . . . . . Time . | . . . . . . . . Parts Recycled . | . . . . . . . . Recycled Matter . | . . . . . . . . Retrieved Matter . | . . . . . . . . Retrieved Components . | . . . . . . . . Parts Scanalyzed . | . . . . . . . . Part Schematics Acquired . | . . . . . . . . Parts Damaged . | . . . . . . . . Bothacking | -11 -10 -9 -9 -8 -7 -7 -7 ------------ Run | Yrd Mat Mat Min Mat Fac Was Fac Used RIF Installer . | . . . . . . . . Robots Hacked 1 | . . 1 . . . . . Non-combat . | . . . . . . . . Combat 1 | . . 1 . . . . . Robot Hacks Applied 1 | . . 1 . . . . . parse_system 1 | . . 1 . . . . . Relay Couplers Released . | . . . . . . . . Fabnet Peak Effective % . | . . . . . . . . Robots Rewired . | . . . . . . . . Allies Hacked . | . . . . . . . . Hacks Repelled . | . . . . . . . . Allies | -11 -10 -9 -9 -8 -7 -7 -7 -------- Run | Yrd Mat Mat Min Mat Fac Was Fac Total Allies 2 | . . . 2 . . . . Largest Group 2 | . . . 2 . . . . Highest-Rated Group 47 | . . . 47 . . . . Highest-Rated Ally 31 | . . . 31 . . . . Total Orders . | . . . . . . . . Ally Attacks 6 | . . . 6 . . . . Total Damage 84 | . . . 84 . . . . Kills 1 | . . . 1 . . . . Allies Corrupted . | . . . . . . . . Allies Melted . | . . . . . . . . Intel | -11 -10 -9 -9 -8 -7 -7 -7 ------- Run | Yrd Mat Mat Min Mat Fac Was Fac Robot Analysis Total . | . . . . . . . . Derelict Logs Recovered . | . . . . . . . . Drone Launches . | . . . . . . . . Drone Recoveries . | . . . . . . . . Exploration | -11 -10 -9 -9 -8 -7 -7 -7 ------------- Run | Yrd Mat Mat Min Mat Fac Was Fac Turns Passed 3575 | 80 236 524 505 686 1046 102 396 Spaces Moved 2518 | 56 169 267 282 300 604 122 718 Core 59 | 7 . . . . 2 38 12 Treads 107 | . . . . 107 . . . Legs 1460 | 49 169 267 282 193 500 . . Wheels 186 | . . . . . 102 84 . Hover . | . . . . . . . . Flight 706 | . . . . . . . 706 Fastest Speed 40 | 50 120 120 120 120 93 50 40 Average Speed 105 | 111 120 120 173 153 118 83 40 Slowest Speed 200 | 120 120 190 190 190 200 100 50 Overloaded Moves . | . . . . . . . . Propulsion Burnouts . | . . . . . . . . Robots Hopped 5 | . . . . . . . 5 Cave-ins Triggered . | . . . . . . . . Exploration Rate (%) 32 | 3 29 30 54 25 15 83 18 Regions Visited 7 Branch Regions 1 Pre-discovered Areas . | . . . . . . . . Known Exits Taken . | . . . . . . . . Unknown Exits Taken 5 | 1 1 1 1 1 . . . Scrap Searched . | . . . . . . . . Spaces Dug . | . . . . . . . . Terrain Destroyed 3 | . . . . 1 . . 2 Melee . | . . . . . . . . Projectile 2 | . . . . 1 . . 1 AOE . | . . . . . . . . Terrain Rammed . | . . . . . . . . Walls Destroyed . | . . . . . . . . Machines Disabled . | . . . . . . . . Actions | -11 -10 -9 -9 -8 -7 -7 -7 --------- Run | Yrd Mat Mat Min Mat Fac Was Fac Total 3137 | 73 186 379 296 446 823 121 813 Wait 237 | . 4 31 11 60 81 . 50 Move 2502 | 55 168 266 281 299 604 121 708 Hop 5 | . . . . . . . 5 Pick Up 88 | 12 4 13 . 16 27 . 16 Fast Attach . | . . . . . . . . Attach 62 | 6 1 9 . 14 24 . 8 Detach 4 | . . . . 1 2 . 1 Swap 34 | . . 6 3 8 15 . 2 Drop 31 | . 1 6 . 5 9 . 10 Fire 172 | . 8 46 1 43 61 . 13 Melee 2 | . . 2 . . . . . Ram . | . . . . . . . . Kick . | . . . . . . . . Crush . | . . . . . . . . Escape Stasis . | . . . . . . . . Rewire . | . . . . . . . . Trap . | . . . . . . . . Miscellaneous . | . . . . . . . . Route ------- -11/Scrapyard -10/Materials -9/Materials -9/Mines -8/Materials -7/Factory -7/Waste -7/Factory History --------- Turn | Location | Event 7 | -11/Scrapyard | Discovered new exit (range 16) 81 | -11/Scrapyard | Entered Materials 140 | -10/Materials | Discovered new exit (range 16) 306 | -10/Materials | Build established: Mutant 317 | -10/Materials | Entered another Materials area 317 | -9/Materials | Evolved 2 slots: Propulsion x1, Utility x1 496 | -9/Materials | Lost 4 parts (2n1u1w) 667 | -9/Materials | Discovered new exit (range 13) 841 | -9/Materials | Entered Mines 941 | -9/Mines | Met a Derelict bent on vengeance 1046 | -9/Mines | Discovered new exit (range 14) 1220 | -9/Mines | Met a Derelict who couldn't figure out how to use a Trap Extractor 1346 | -9/Mines | Entered Materials 1346 | -8/Materials | Evolved 2 slots: Propulsion x1, Utility x1 1764 | -8/Materials | Lost 3 parts (1n1u1w) 1982 | -8/Materials | Lost 3 parts (1p2n) 2011 | -8/Materials | Discovered new exit (range 4) 2032 | -8/Materials | Entered Factory 2032 | -7/Factory | Evolved 2 slots: Propulsion x1, Utility x1 2167 | -7/Factory | Build established: Scavenger-Mutant 2225 | -7/Factory | Lost 3 parts (1p1n1w) 2771 | -7/Factory | Lost 11 parts (6n3u2w) 2867 | -7/Factory | Garrison activated, responded to threat 2872 | -7/Factory | Core integrity fell below 50% 3078 | -7/Factory | Sucked down chute 3078 | -7/Factory | Entered Waste 3103 | -7/Waste | Spotted C-40 Crusher 3108 | -7/Waste | Spotted C-40 Crusher 3118 | -7/Waste | Spotted C-40 Crusher 3119 | -7/Waste | Crushed by Compactor (1 part destroyed, 1 dropped) 3144 | -7/Waste | Spotted C-40 Crusher 3145 | -7/Waste | Spotted C-40 Crusher 3153 | -7/Waste | Crushed by Compactor (1 part destroyed, 2 dropped) 3156 | -7/Waste | Crushed by Compactor (1 part destroyed, 2 dropped) 3161 | -7/Waste | Spotted C-40 Crusher 3166 | -7/Waste | Crushed by Compactor (1 part destroyed, 2 dropped) 3167 | -7/Waste | Core integrity fell below 20% 3173 | -7/Waste | Discovered new exit (range 11) 3180 | -7/Waste | Entered Factory 3197 | -7/Factory | Lost 4 parts (3n1u) 3472 | -7/Factory | Build established: Mutant 3576 | -7/Factory | Destroyed by S-27 Virus with Autogun Last Messages --------------- O-24 Administrator: "IFF HANDSHAKE FAILED. SECURING TERMINAL." ALERT: Hostiles spotted, dispatching reinforcements to Terminal F012. Matter Pump disabled. K-01 Serf collects debris. Matter Pump disabled. Slug penetrates H-55 Commando. Penetrated by Slug. Slug penetrates Wall. Slug penetrates R-06 Scavenger. R-06 Scavenger destroyed. Penetrated by Slug. Slug penetrates H-55 Commando. Door malfunctions. Penetrated by Slug. System corrupted: Matter fused (-5). W-25 Informer sends out distress signal. ZVKBO